Workbook

Sheet Data Input
B3: CCIM Office Gap Analysis | H3: =NOW() -> 2021-08-16T11:03:13.290
B5: Market Area | E5: Market Area Employment Sector | F5: % Office Using | H5: # Office Employees
B6: Plano-Allen Office Submarket | E6: ='U.S. Office Using Employment'!A326 -> Wholesale trade | F6: ='U.S. Office Using Employment'!F326 -> 0.09348504003 | H6: =F6*'Business Summary'!BT77 -> 1179.31378
E7: ='U.S. Office Using Employment'!A389 -> Retail trade | F7: ='U.S. Office Using Employment'!F389 -> 0.03452578508 | H7: =F7*'Business Summary'!BT78 -> 2270.657307
B8: Market Area Supply Data | E8: ='U.S. Office Using Employment'!A475 -> Transportation and warehousing | F8: ='U.S. Office Using Employment'!F475 -> 0.1589476915 | H8: =F8*'Business Summary'!BT91 -> 507.3610314
B9: Current Total Supply (RSF) | C9: 32958000 | E9: ='U.S. Office Using Employment'!A529 -> Information | F9: ='U.S. Office Using Employment'!F529 -> 0.7901142041 | H9: =F9*'Business Summary'!BT92 -> 15085.6505
B10: Current Overall Vacancy Supply (RSF) | C10: 8878000 | E10: ='U.S. Office Using Employment'!A557 -> Finance and insurance | F10: ='U.S. Office Using Employment'!F557 -> 0.9922765897 | H10: =F10*'Business Summary'!BT93 -> 22109.90697
B11: New Supply in Construction Pipeline (RSF) | C11: 409000 | E11: ='U.S. Office Using Employment'!A599 -> Real estate | F11: ='U.S. Office Using Employment'!F599 -> 0.9518571244 | H11: =F11*'Business Summary'!BT97 -> 13049.00932
B12: Stabilized Vacancy Rate % | C12: 0.2 | E12: ='U.S. Office Using Employment'!A625 -> Professional and business services | F12: ='U.S. Office Using Employment'!F625 -> 0.9526827784 | H12: =F12*'Business Summary'!BT98 -> 31095.56589
E13: ='U.S. Office Using Employment'!A677 -> Management of companies and enterprises | F13: ='U.S. Office Using Employment'!F677 -> 1.000041513 | H13: =F13*'Business Summary'!BT100 -> 699.0290174
B14: Market Area Forecast Data | E14: ='U.S. Office Using Employment'!A681 -> Administrative and support services | F14: ='U.S. Office Using Employment'!F681 -> 0.6024556357 | H14: =F14*'Business Summary'!BT101 -> 5668.505076
B15: Forecast Period (Months) | C15: 12 | E15: ='U.S. Office Using Employment'!A728 -> Educational services | F15: ='U.S. Office Using Employment'!F728 -> 0.0624338064 | H15: =F15*'Business Summary'!BT102 -> 1760.321171
B16: Economic Base Multiplier [1] | C16: 6.48 | E16: ='U.S. Office Using Employment'!A741 -> Health care and social assistance | F16: ='U.S. Office Using Employment'!F741 -> 0.2343814443 | H16: =F16*'Business Summary'!BT103 -> 11015.45912
B17: Forecast Annual Employment Growth Rate | C17: =RATE(60/12,0,-'Business Summary'!BT114,('Executive Summary'!W14/('Executive Summary'!W13/'Business Summary'!BT114))) -> 0.02551795878 | E17: ='U.S. Office Using Employment'!A845 -> Other services | F17: ='U.S. Office Using Employment'!F845 -> 0.88892827 | H17: =F17*'Business Summary'!BT108 -> 21441.8388
B18: Forecast Basic Employment Change | C18: =('Business Summary'!BT114*(1+'Data Input'!C17)^('Data Input'!C15/12)*(1/C16))-('Business Summary'!BT114*(1/C16)) -> 1509.111605 | E18: ='U.S. Office Using Employment'!A897 -> Government | F18: ='U.S. Office Using Employment'!F897 -> 0.3268675929 | H18: =F18*'Business Summary'!BT110 -> 2466.542856
B19: Forecast Total Office Using Employment | C19: =((H19/'Business Summary'!BT114)*('Data Input'!C18*'Data Input'!C16))+H19 -> 131624.3694 | E19: Current Total Office Using Employment | F19: =H19/'Business Summary'!BT114 -> 0.3349211706 | H19: =SUM(H6:H18) -> 128349.1608
B21: [1] Use EBM Calcualtor Data Link Above to Determine EBM for Market Area (Chrome Internet Browser Works Best)

Sheet U.S. Office Using Employment (hidden)
A1: Office Using Employment Estimate (updated April 2019)
A2: Industry | B2: NAICS Code | C2: Total Employment x 1,000 | D2: Office Using? "X"=Yes | E2: # of Office Workers | F2: % of Office Workers
A3: Total nonfarm | C3: 151020
A5: Total private | C5: 128491
A7: Goods-producing | C7: 21070
A9: Mining and logging | C9: 756
A10: Logging | B10: 1133 | C10: 45.7
A11: Mining | B11: 21 | C11: 710.6
A12: Oil and gas extraction | B12: 211 | C12: 155.1
A13: Mining, except oil and gas | B13: 212 | C13: 195.5
A14: Coal mining | B14: 2121 | C14: 52.4
A15: Bituminous coal and lignite surface mining(1) | B15: 212111 | C15: 22.9
A16: Bituminous coal underground mining and anthracite mining(1) | B16: 212112,3 | C16: 29.6
A17: Metal ore mining | B17: 2122 | C17: 41.5
A18: Nonmetallic mineral mining and quarrying | B18: 2123 | C18: 101.7
A19: Stone mining and quarrying(1) | B19: 21231 | C19: 42.6
A20: Crushed and broken limestone mining(1) | B20: 212312 | C20: 22.2
A21: Other stone mining and quarrying(1) | B21: 212311,3,9 | C21: 20.4
A22: Sand, gravel, clay, and refractory mining(1) | B22: 21232 | C22: 46.9
A23: Construction sand and gravel mining(1) | B23: 212321 | C23: 31.1
A24: Other nonmetallic mineral mining(1) | B24: 21239 | C24: 12.3
A25: Support activities for mining | B25: 213 | C25: 360
A26: Support activities for oil and gas operations(1) | B26: 213112 | C26: 280.8
A28: Construction | B28: 23 | C28: 7478
A29: Construction of buildings | B29: 236 | C29: 1650.6
A30: Residential building | B30: 2361 | C30: 829.3
A31: New single-family general contractors | B31: 236115 | C31: 371.3
A32: New multifamily general contractors | B32: 236116 | C32: 35.6
A33: New housing operative builders | B33: 236117 | C33: 41.2
A34: Residential remodelers | B34: 236118 | C34: 381.2
A35: Nonresidential building | B35: 2362 | C35: 821.3
A36: Industrial building | B36: 23621 | C36: 163.8
A37: Commercial building | B37: 23622 | C37: 657.5
A38: Heavy and civil engineering construction | B38: 237 | C38: 1088.1
A39: Utility system construction(1) | B39: 2371 | C39: 568.6
A40: Water and sewer system construction(1) | B40: 23711 | C40: 199
A41: Oil and gas pipeline construction(1) | B41: 23712 | C41: 179.3
A42: Power and communication system construction(1) | B42: 23713 | C42: 189.8
A43: Land subdivision(1) | B43: 2372 | C43: 39
A44: Highway, street, and bridge construction(1) | B44: 2373 | C44: 360.2
A45: Other heavy construction(1) | B45: 2379 | C45: 119.6
A46: Specialty trade contractors | B46: 238 | C46: 4739.6
A47: Residential specialty trade contractors | B47: part 238 | C47: 2066
A48: Nonresidential specialty trade contractors | B48: part 238 | C48: 2673.6
A49: Building foundation and exterior contractors(1) | B49: 2381 | C49: 921.1
A50: Poured concrete structure contractors | B50: 23811 | C50: 230.9
A51: Steel and precast concrete contractors | B51: 23812 | C51: 86.4
A52: Framing contractors | B52: 23813 | C52: 83.8
A53: Masonry contractors | B53: 23814 | C53: 145.3
A54: Glass and glazing contractors | B54: 23815 | C54: 69.9
A55: Roofing contractors | B55: 23816 | C55: 220.3
A56: Siding contractors | B56: 23817 | C56: 39.2
A57: Other building exterior contractors | B57: 23819 | C57: 47.6
A58: Building equipment contractors(1) | B58: 2382 | C58: 2254.2
A59: Electrical contractors | B59: 23821 | C59: 954.8
A60: Plumbing and HVAC contractors | B60: 23822 | C60: 1150.1
A61: Other building equipment contractors | B61: 23829 | C61: 148.7
A62: Building finishing contractors(1) | B62: 2383 | C62: 851
A63: Drywall and insulation contractors | B63: 23831 | C63: 260.9
A64: Painting and wall covering contractors | B64: 23832 | C64: 215.8
A65: Flooring contractors | B65: 23833 | C65: 82.9
A66: Tile and terrazzo contractors | B66: 23834 | C66: 59.4
A67: Finish carpentry contractors | B67: 23835 | C67: 153.8
A68: Other building finishing contractors | B68: 23839 | C68: 79.5
A69: Other specialty trade contractors(1) | B69: 2389 | C69: 711.4
A70: Site preparation contractors | B70: 23891 | C70: 353.6
A71: All other specialty trade contractors | B71: 23899 | C71: 356.9
A73: Manufacturing | C73: 12836
A75: Durable goods | C75: 8056
A76: Wood products | B76: 321 | C76: 410.2
A77: Sawmills and wood preservation(1) | B77: 3211 | C77: 93.7
A78: Plywood and engineered wood products(1) | B78: 3212 | C78: 80.8
A79: Other wood products(1) | B79: 3219 | C79: 235.6
A80: Millwork(1) | B80: 32191 | C80: 106.1
A81: Wood windows and doors(1) | B81: 321911 | C81: 52.1
A82: Cut stock, resawing lumber, planing, and other millwork, including flooring(1) | B82: 321912,8 | C82: 53.7
A83: Wood containers and pallets(1) | B83: 32192 | C83: 59.6
A84: All other wood products(1) | B84: 32199 | C84: 70.3
A85: Nonmetallic mineral products | B85: 327 | C85: 414.5
A86: Clay products and refractories(1) | B86: 3271 | C86: 39.6
A87: Glass and glass products(1) | B87: 3272 | C87: 85.5
A88: Flat glass and other pressed and blown glass and glassware(1) | B88: 327211,2 | C88: 24.6
A89: Glass containers and products made of purchased glass(1) | B89: 327213,5 | C89: 61
A90: Cement and concrete products(1) | B90: 3273 | C90: 191.8
A91: Ready-mix concrete(1) | B91: 32732 | C91: 98.1
A92: Other cement and concrete products(1) | B92: 32731,3,9 | C92: 94.1
A93: Lime, gypsum, and other nonmetallic mineral products(1) | B93: 3274,9 | C93: 97.6
A94: Primary metals | B94: 331 | C94: 381.7
A95: Iron and steel mills and ferroalloy production(1) | B95: 3311 | C95: 85.2
A96: Steel products from purchased steel(1) | B96: 3312 | C96: 58.8
A97: Alumina and aluminum production(1) | B97: 3313 | C97: 57.4
A98: Other nonferrous metal production(1) | B98: 3314 | C98: 60.4
A99: Foundries(1) | B99: 3315 | C99: 120.1
A100: Ferrous metal foundries(1) | B100: 33151 | C100: 63.6
A101: Iron foundries(1) | B101: 331511 | C101: 35.5
A102: Nonferrous metal foundries(1) | B102: 33152 | C102: 56.5
A103: Fabricated metal products | B103: 332 | C103: 1483.6
A104: Forging and stamping(1) | B104: 3321 | C104: 102.3
A105: Cutlery and hand tools(1) | B105: 3322 | C105: 35.6
A106: Architectural and structural metals(1) | B106: 3323 | C106: 391.6
A107: Plate work and fabricated structural products(1) | B107: 33231 | C107: 170.4
A108: Fabricated structural metal products(1) | B108: 332312 | C108: 88.2
A109: Prefabricated metal buildings, components, and plate work(1) | B109: 332311,3 | C109: 82.2
A110: Ornamental and architectural metal products(1) | B110: 33232 | C110: 221.2
A111: Metal windows and doors(1) | B111: 332321 | C111: 67
A112: Sheet metal work(1) | B112: 332322 | C112: 112.3
A113: Ornamental and architectural metal work(1) | B113: 332323 | C113: 42
A114: Boilers, tanks, and shipping containers(1) | B114: 3324 | C114: 93.7
A115: Hardware, spring, and wire products(1) | B115: 3325,6 | C115: 71.4
A116: Machine shops and threaded products(1) | B116: 3327 | C116: 363.3
A117: Machine shops(1) | B117: 33271 | C117: 286.9
A118: Turned products and screws, nuts, and bolts(1) | B118: 33272 | C118: 76.9
A119: Precision turned products(1) | B119: 332721 | C119: 38.9
A120: Bolts, nuts, screws, rivets, and washers(1) | B120: 332722 | C120: 37.8
A121: Coating, engraving, and heat treating metals(1) | B121: 3328 | C121: 143.1
A122: Metal heat treating and coating and nonprecious engraving(1) | B122: 332811,2 | C122: 82.3
A123: Electroplating, anodizing, and coloring metals(1) | B123: 332813 | C123: 60.9
A124: Other fabricated metal products(1) | B124: 3329 | C124: 282.6
A125: Metal valves(1) | B125: 33291 | C125: 91.4
A126: Fluid power valves and hose fittings(1) | B126: 332912 | C126: 37.7
A127: All other metal valves(1) | B127: 332911,3,9 | C127: 53.7
A128: All other fabricated metal products(1) | B128: 33299 | C128: 191.1
A129: Small arms, ammunition, and other ordnance and accessories(1) | B129: 332992,3,4 | C129: 46
A130: Miscellaneous fabricated metal products and ball and roller bearings(1) | B130: 332991,6,9 | C130: 144.7
A131: Machinery | B131: 333 | C131: 1139.6
A132: Agricultural, construction, and mining machinery(1) | B132: 3331 | C132: 226.6
A133: Agricultural implements(1) | B133: 33311 | C133: 77
A134: Farm machinery and equipment(1) | B134: 333111 | C134: 60.1
A135: Construction machinery(1) | B135: 33312 | C135: 71.8
A136: Mining and oil and gas field machinery(1) | B136: 33313 | C136: 77.4
A137: Industrial machinery(1) | B137: 3332 | C137: 119.7
A138: Commercial and service industry machinery(1) | B138: 3333 | C138: 96.7
A139: HVAC and commercial refrigeration equipment(1) | B139: 3334 | C139: 135.7
A140: AC, refrigeration, and forced air heating(1) | B140: 333415 | C140: 90.7
A141: Metalworking machinery(1) | B141: 3335 | C141: 179.6
A142: Industrial molds(1) | B142: 333511 | C142: 37
A143: Special tools, dies, jigs, and fixtures(1) | B143: 333514 | C143: 62.8
A144: Machine tool manufacturing(1) | B144: 333517 | C144: 40.7
A145: Miscellaneous metalworking machinery(1) | B145: 333515,9 | C145: 38.7
A146: Turbine and power transmission equipment(1) | B146: 3336 | C146: 101.4
A147: Other general purpose machinery(1) | B147: 3339 | C147: 279.5
A148: Pumps and compressors(1) | B148: 33391 | C148: 50.4
A149: Material handling equipment(1) | B149: 33392 | C149: 87.5
A150: All other general purpose machinery(1) | B150: 33399 | C150: 141.7
A151: Computer and electronic products | B151: 334 | C151: 1075.9
A152: Computer and peripheral equipment | B152: 3341 | C152: 159.5
A153: Electronic computers(1) | B153: 334111 | C153: 110.8
A154: Computer storage devices, terminals, and other peripheral equipment(1) | B154: 334112,8 | C154: 48.9
A155: Communications equipment | B155: 3342 | C155: 86.5
A156: Telephone apparatus(1) | B156: 33421 | C156: 16.3
A157: Broadcast and wireless communications equipment(1) | B157: 33422 | C157: 51.4
A158: Semiconductors and electronic components | B158: 3344 | C158: 375.4
A159: Bare printed circuit boards(1) | B159: 334412 | C159: 26.8
A160: Semiconductors and related devices(1) | B160: 334413 | C160: 183.7
A161: Printed circuit assemblies(1) | B161: 334418 | C161: 62.5
A162: Electronic connectors and misc. electronic components(1) | B162: 334416,7,9 | C162: 102.4
A163: Electronic instruments | B163: 3345 | C163: 421
A164: Electromedical apparatus(1) | B164: 334510 | C164: 71.5
A165: Search, detection, and navigation instruments(1) | B165: 334511 | C165: 130.6
A166: Industrial process variable instruments(1) | B166: 334513 | C166: 63.8
A167: Electricity and signal testing instruments(1) | B167: 334515 | C167: 38
A168: Miscellaneous electronic instruments(1) | B168: 334512,4,6-9 | C168: 117.1
A169: Miscellaneous computer and electronic products | B169: 3343,6 | C169: 33.4
A170: Electrical equipment and appliances | B170: 335 | C170: 402.8
A171: Electric lighting equipment(1) | B171: 3351 | C171: 50.5
A172: Household appliances(1) | B172: 3352 | C172: 60.5
A173: Electrical equipment(1) | B173: 3353 | C173: 146
A174: Electric power and specialty transformers(1) | B174: 335311 | C174: 29.2
A175: Motors and generators, switchgears and switchboard apparatus, and relay and industrial controls(1) | B175: 335312,3,4 | C175: 117
A176: Other electrical equipment and components(1) | B176: 3359 | C176: 145.6
A177: Batteries(1) | B177: 33591 | C177: 35.5
A178: Wiring devices(1) | B178: 33593 | C178: 46.8
A179: All other electrical equipment and components(1) | B179: 33592,9 | C179: 63.3
A180: Transportation equipment | B180: 336 | C180: 1737
A181: Motor vehicles and parts(2) | B181: 3361,2,3 | C181: 997
A182: Motor vehicles(1) | B182: 3361 | C182: 240
A183: Automobiles and light trucks(1) | B183: 33611 | C183: 207.4
A184: Automobiles(1) | B184: 336111 | C184: 137.6
A185: Light trucks and utility vehicles(1) | B185: 336112 | C185: 68.8
A186: Heavy duty trucks(1) | B186: 33612 | C186: 32.8
A187: Motor vehicle bodies and trailers(1) | B187: 3362 | C187: 165.7
A188: Motor vehicle bodies(1) | B188: 336211 | C188: 57.8
A189: Truck trailers, motor homes, travel trailers, and campers(1) | B189: 336212,3,4 | C189: 107.8
A190: Motor vehicle parts(1) | B190: 3363 | C190: 591.7
A191: Motor vehicle gasoline engine and parts(1) | B191: 33631 | C191: 61.8
A192: Motor vehicle electric equipment(1) | B192: 33632 | C192: 60.9
A193: Motor vehicle steering and suspension parts(1) | B193: 33633 | C193: 35
A194: Motor vehicle brake systems(1) | B194: 33634 | C194: 26
A195: Motor vehicle power train components(1) | B195: 33635 | C195: 81.3
A196: Motor vehicle seating and interior trim(1) | B196: 33636 | C196: 74.9
A197: Motor vehicle metal stamping(1) | B197: 33637 | C197: 88.6
A198: All other motor vehicle parts(1) | B198: 33639 | C198: 163.1
A199: Aerospace products and parts(1) | B199: 3364 | C199: 533.8
A200: Aircraft(1) | B200: 336411 | C200: 250.8
A201: Aircraft engines and engine parts(1) | B201: 336412 | C201: 87.5
A202: Other aircraft parts and equipment(1) | B202: 336413 | C202: 114.2
A203: Guided missiles, space vehicles, and parts(1) | B203: 336414,5,9 | C203: 81.8
A204: Ship and boat building(1) | B204: 3366 | C204: 145.9
A205: Ship building and repairing(1) | B205: 336611 | C205: 99.4
A206: Boat building(1) | B206: 336612 | C206: 46.4
... 712 more rows

Sheet Business Summary
E2: Business Summary
F4: Plano/Allen Office Submarket REIS | AW4: Prepared by Esri
A9: Data for all businesses in area
A10: Total Businesses: | BK10: 32913
A11: Total Employees: | BK11: 383222
A12: Total Residential Population: | BK12: 927506
A13: Employee/Residential Population Ratio (per 100 Residents) | BK13: 41
BH14: Businesses | BU14: Employees
A15: by SIC Codes | BF15: Number | BN15: Percent | BS15: Number | BW15: Percent
A16: Agriculture & Mining | BG16: 576 | BO16: 1.8 | BT16: 5407 | BW16: 1.4
A17: Construction | BG17: 1698 | BO17: 5.2 | BT17: 13810 | BW17: 3.6
A18: Manufacturing | BG18: 615 | BO18: 1.9 | BT18: 22497 | BW18: 5.9
A19: Transportation | BG19: 574 | BO19: 1.7 | BT19: 4497 | BW19: 1.2
A20: Communication | BG20: 300 | BO20: 0.9 | BT20: 4826 | BW20: 1.3
A21: Utility | BG21: 54 | BO21: 0.2 | BT21: 1082 | BW21: 0.3
A22: Wholesale Trade | BG22: 590 | BO22: 1.8 | BT22: 12740 | BW22: 3.3
A24: Retail Trade Summary | BG24: 6490 | BO24: 19.7 | BT24: 105240 | BW24: 27.5
A25: Home Improvement | BG25: 328 | BO25: 1 | BT25: 4666 | BW25: 1.2
A26: General Merchandise Stores | BG26: 203 | BO26: 0.6 | BT26: 14241 | BW26: 3.7
A27: Food Stores | BG27: 735 | BO27: 2.2 | BT27: 9634 | BW27: 2.5
A28: Auto Dealers, Gas Stations, Auto Aftermarket | BG28: 456 | BO28: 1.4 | BT28: 14890 | BW28: 3.9
A29: Apparel & Accessory Stores | BG29: 514 | BO29: 1.6 | BT29: 4517 | BW29: 1.2
A30: Furniture & Home Furnishings | BG30: 421 | BO30: 1.3 | BT30: 5202 | BW30: 1.4
A31: Eating & Drinking Places | BG31: 2165 | BO31: 6.6 | BT31: 38070 | BW31: 9.9
A32: Miscellaneous Retail | BG32: 1667 | BO32: 5.1 | BT32: 14019 | BW32: 3.7
A34: Finance, Insurance, Real Estate Summary | BG34: 3696 | BO34: 11.2 | BT34: 36317 | BW34: 9.5
A35: Banks, Savings & Lending Institutions | BG35: 673 | BO35: 2 | BT35: 8047 | BW35: 2.1
A36: Securities Brokers | BG36: 620 | BO36: 1.9 | BT36: 3891 | BW36: 1
A37: Insurance Carriers & Agents | BG37: 724 | BO37: 2.2 | BT37: 10130 | BW37: 2.6
A38: Real Estate, Holding, Other Investment Offices | BG38: 1679 | BO38: 5.1 | BT38: 14248 | BW38: 3.7
A40: Services Summary | BG40: 13376 | BO40: 40.6 | BT40: 166844 | BW40: 43.5
A41: Hotels & Lodging | BG41: 189 | BO41: 0.6 | BT41: 5624 | BW41: 1.5
A42: Automotive Services | BG42: 588 | BO42: 1.8 | BT42: 4394 | BW42: 1.1
A43: Motion Pictures & Amusements | BG43: 948 | BO43: 2.9 | BT43: 12327 | BW43: 3.2
A44: Health Services | BG44: 3013 | BO44: 9.2 | BT44: 37690 | BW44: 9.8
A45: Legal Services | BG45: 678 | BO45: 2.1 | BT45: 3337 | BW45: 0.9
A46: Education Institutions & Libraries | BG46: 649 | BO46: 2 | BT46: 27236 | BW46: 7.1
A47: Other Services | BG47: 7312 | BO47: 22.2 | BT47: 76236 | BW47: 19.9
A49: Government | BG49: 249 | BO49: 0.8 | BT49: 7526 | BW49: 2
A51: Unclassified Establishments | BG51: 4694 | BO51: 14.3 | BT51: 2434 | BW51: 0.6
A53: Totals | BG53: 32913 | BO53: 100.0% | BT53: 383222 | BW53: 100.0%
B55: Source: Copyright 2021 Data Axle, Inc. All rights reserved. Esri Total Residential Population forecasts for 2021.
B56: Date Note: Data on the Business Summary report is calculated using | N56: Esri’s Data allocation method | X56: which uses census block groups to allocate business summary data to custom areas.
O59: August 16, 2021
C61: ©2021 Esri | BA61: Page 1 of 2
E63: Business Summary
F65: Plano/Allen Office Submarket REIS | AW65: Prepared by Esri
BF70: Businesses | BR70: Employees
A71: by NAICS Codes | BG71: Number | BO71: Percent | BT71: Number | BW71: Percent
A72: Agriculture, Forestry, Fishing & Hunting | BI72: 79 | BO72: 0.2 | BT72: 679 | BW72: 0.2
A73: Mining | BI73: 65 | BO73: 0.2 | BT73: 1293 | BW73: 0.3
A74: Utilities | BI74: 24 | BO74: 0.1 | BT74: 577 | BW74: 0.2
A75: Construction | BI75: 1813 | BO75: 5.5 | BT75: 14606 | BW75: 3.8
A76: Manufacturing | BI76: 724 | BO76: 2.2 | BT76: 22994 | BW76: 6
A77: Wholesale Trade | BI77: 560 | BO77: 1.7 | BT77: 12615 | BW77: 3.3
A78: Retail Trade | BI78: 4087 | BO78: 12.4 | BT78: 65767 | BW78: 17.2
A79: Motor Vehicle & Parts Dealers | BI79: 368 | BO79: 1.1 | BT79: 14456 | BW79: 3.8
A80: Furniture & Home Furnishings Stores | BI80: 203 | BO80: 0.6 | BT80: 2364 | BW80: 0.6
A81: Electronics & Appliance Stores | BI81: 187 | BO81: 0.6 | BT81: 2732 | BW81: 0.7
A82: Bldg Material & Garden Equipment & Supplies Dealers | BI82: 329 | BO82: 1 | BT82: 4668 | BW82: 1.2
A83: Food & Beverage Stores | BI83: 492 | BO83: 1.5 | BT83: 8249 | BW83: 2.2
A84: Health & Personal Care Stores | BI84: 556 | BO84: 1.7 | BT84: 5699 | BW84: 1.5
A85: Gasoline Stations | BI85: 88 | BO85: 0.3 | BT85: 434 | BW85: 0.1
A86: Clothing & Clothing Accessories Stores | BI86: 630 | BO86: 1.9 | BT86: 5001 | BW86: 1.3
A87: Sport Goods, Hobby, Book, & Music Stores | BI87: 236 | BO87: 0.7 | BT87: 3058 | BW87: 0.8
A88: General Merchandise Stores | BI88: 203 | BO88: 0.6 | BT88: 14241 | BW88: 3.7
A89: Miscellaneous Store Retailers | BI89: 559 | BO89: 1.7 | BT89: 4563 | BW89: 1.2
A90: Nonstore Retailers | BI90: 237 | BO90: 0.7 | BT90: 302 | BW90: 0.1
A91: Transportation & Warehousing | BI91: 372 | BO91: 1.1 | BT91: 3192 | BW91: 0.8
A92: Information | BI92: 832 | BO92: 2.5 | BT92: 19093 | BW92: 5
A93: Finance & Insurance | BI93: 2048 | BO93: 6.2 | BT93: 22282 | BW93: 5.8
A94: Central Bank/Credit Intermediation & Related Activities | BI94: 675 | BO94: 2.1 | BT94: 8051 | BW94: 2.1
A95: Securities, Commodity Contracts & Other Financial Investments & Other Related Activities | BI95: 643 | BO95: 2 | BT95: 4034 | BW95: 1.1
A96: Insurance Carriers & Related Activities; Funds, Trusts & Other Financial Vehicles | BI96: 730 | BO96: 2.2 | BT96: 10197 | BW96: 2.7
A97: Real Estate, Rental & Leasing | BI97: 1740 | BO97: 5.3 | BT97: 13709 | BW97: 3.6
A98: Professional, Scientific & Tech Services | BI98: 3497 | BO98: 10.6 | BT98: 32640 | BW98: 8.5
A99: Legal Services | BI99: 784 | BO99: 2.4 | BT99: 4607 | BW99: 1.2
A100: Management of Companies & Enterprises | BI100: 161 | BO100: 0.5 | BT100: 699 | BW100: 0.2
A101: Administrative & Support & Waste Management & Remediation Services | BI101: 1160 | BO101: 3.5 | BT101: 9409 | BW101: 2.5
A102: Educational Services | BI102: 891 | BO102: 2.7 | BT102: 28195 | BW102: 7.4
A103: Health Care & Social Assistance | BI103: 3633 | BO103: 11 | BT103: 46998 | BW103: 12.3
A104: Arts, Entertainment & Recreation | BI104: 673 | BO104: 2 | BT104: 10093 | BW104: 2.6
A105: Accommodation & Food Services | BI105: 2462 | BO105: 7.5 | BT105: 44288 | BW105: 11.6
A106: Accommodation | BI106: 189 | BO106: 0.6 | BT106: 5624 | BW106: 1.5
A107: Food Services & Drinking Places | BI107: 2273 | BO107: 6.9 | BT107: 38664 | BW107: 10.1
A108: Other Services (except Public Administration) | BI108: 3151 | BO108: 9.6 | BT108: 24121 | BW108: 6.3
A109: Automotive Repair & Maintenance | BI109: 490 | BO109: 1.5 | BT109: 3859 | BW109: 1
A110: Public Administration | BI110: 250 | BO110: 0.8 | BT110: 7546 | BW110: 2
A112: Unclassified Establishments | BI112: 4692 | BO112: 14.3 | BT112: 2426 | BW112: 0.6
A114: Total | BI114: 32913 | BO114: 100.0% | BT114: 383222 | BW114: 100.0%
B116: Source: Copyright 2021 Data Axle, Inc. All rights reserved. Esri Total Residential Population forecasts for 2021.
B117: Date Note: Data on the Business Summary report is calculated using | N117: Esri’s Data allocation method | X117: which uses census block groups to allocate business summary data to custom areas.
O120: August 16, 2021
C122: ©2021 Esri | BA122: Page 2 of 2

Sheet Executive Summary
G2: Executive Summary
H4: Plano/Allen Office Submarket REIS | R4: Prepared by Esri
D10: Population
D11: 2000 Population | W11: 441471
D12: 2010 Population | W12: 685087
D13: 2021 Population | W13: 927506
D14: 2026 Population | W14: 1052042
D15: 2000-2010 Annual Rate | W15: 4.49
D16: 2010-2021 Annual Rate | W16: 2.73
D17: 2021-2026 Annual Rate | W17: 2.55
D18: 2021 Male Population | W18: 48.9
D19: 2021 Female Population | W19: 51.1
D20: 2021 Median Age | W20: 36.5
D21: In the identified area, the current year population is 927,506. In 2010, the Census count in the area was 685,087. The rate of change since 2010 was 2.73% annually. The five-year projection for the population in the area is 1,052,042 representing a change of 2.55% annually from 2021 to 2026. Currently, the population is 48.9% male and 51.1% female.
D22: Median Age
D23: The median age in this area is 36.5, compared to U.S. median age of 38.5.
D24: Race and Ethnicity
D25: 2021 White Alone | W25: 59.1
D26: 2021 Black Alone | W26: 11.4
D27: 2021 American Indian/Alaska Native Alone | W27: 0.5
D28: 2021 Asian Alone | W28: 20.1
D29: 2021 Pacific Islander Alone | W29: 0.1
D30: 2021 Other Race | W30: 5.3
D31: 2021 Two or More Races | W31: 3.7
D32: 2021 Hispanic Origin (Any Race) | W32: 15.1
D33: Persons of Hispanic origin represent 15.1% of the population in the identified area compared to 18.9% of the U.S. population. Persons of Hispanic Origin may be of any race. The Diversity Index, which measures the probability that two people from the same area will be from different race/ethnic groups, is 70.1 in the identified area, compared to 65.4 for the U.S. as a whole.
D34: Households
D35: 2021 Wealth Index | W35: 136
D36: 2000 Households | W36: 165028
D37: 2010 Households | W37: 252097
D38: 2021 Total Households | W38: 338227
D39: 2026 Total Households | W39: 382325
D40: 2000-2010 Annual Rate | W40: 4.33
D41: 2010-2021 Annual Rate | W41: 2.65
D42: 2021-2026 Annual Rate | W42: 2.48
D43: 2021 Average Household Size | W43: 2.74
D44: The household count in this area has changed from 252,097 in 2010 to 338,227 in the current year, a change of 2.65% annually. The five-year projection of households is 382,325, a change of 2.48% annually from the current year total. Average household size is currently 2.74, compared to 2.71 in the year 2010. The number of families in the current year is 239,049 in the specified area.
B46: Data Note: Income is expressed in current dollars. Housing Affordability Index and Percent of Income for Mortgage calculations are only available for areas with 50 or more owner-occupied housing units. Source: U.S. Census Bureau, Census 2010 Summary File 1. Esri forecasts for 2021 and 2026. Esri converted Census 2000 data into 2010 geography.
F49: August 16, 2021
C51: ©2021 Esri | X51: Page 1 of 2
G53: Executive Summary
H55: Plano/Allen Office Submarket REIS | R55: Prepared by Esri
D61: Mortgage Income
D62: 2021 Percent of Income for Mortgage | W62: 15.8
D63: Median Household Income
D64: 2021 Median Household Income | W64: 95059
D65: 2026 Median Household Income | W65: 102188
D66: 2021-2026 Annual Rate | W66: 1.46
D67: Average Household Income
D69: 2021 Average Household Income | W69: 123806
D70: 2026 Average Household Income | W70: 134347
D71: 2021-2026 Annual Rate | W71: 1.65
D72: Per Capita Income
D74: 2021 Per Capita Income | V74: 45143
D75: 2026 Per Capita Income | V75: 48817
D76: 2021-2026 Annual Rate | V76: 1.58
D77: Households by Income
D79: Current median household income is $95,059 in the area, compared to $64,730 for all U.S. households. Median household income is projected to be $102,188 in five years, compared to $72,932 for all U.S. households Current average household income is $123,806 in this area, compared to $90,054 for all U.S. households. Average household income is projected to be $134,347 in five years, compared to $103,679 for all U.S. households Current per capita income is $45,143 in the area, compared to the U.S. per capita income of $34,136. The per capita income is projected to be $48,817 in five years, compared to $39,378 for all U.S. households
D80: Housing
D82: 2021 Housing Affordability Index | U82: 124
D83: 2000 Total Housing Units | U83: 176682
D84: 2000 Owner Occupied Housing Units | U84: 111235
D85: 2000 Renter Occupied Housing Units | U85: 53793
D86: 2000 Vacant Housing Units | U86: 11654
D87: 2010 Total Housing Units | U87: 266553
D88: 2010 Owner Occupied Housing Units | U88: 167477
D89: 2010 Renter Occupied Housing Units | U89: 84620
D90: 2010 Vacant Housing Units | U90: 14456
D91: 2021 Total Housing Units | U91: 355579
D92: 2021 Owner Occupied Housing Units | U92: 204046
D93: 2021 Renter Occupied Housing Units | U93: 134182
D94: 2021 Vacant Housing Units | U94: 17352
D95: 2026 Total Housing Units | U95: 401709
D96: 2026 Owner Occupied Housing Units | U96: 229079
D97: 2026 Renter Occupied Housing Units | U97: 153246
D98: 2026 Vacant Housing Units | U98: 19384
D99: Currently, 57.4% of the 355,579 housing units in the area are owner occupied; 37.7%, renter occupied; and 4.9% are vacant. Currently, in the U.S., 57.3% of the housing units in the area are owner occupied; 31.2% are renter occupied; and 11.5% are vacant. In 2010, there were 266,553 housing units in the area - 62.8% owner occupied, 31.7% renter occupied, and 5.4% vacant. The annual rate of change in housing units since 2010 is 13.66%. Median home value in the area is $357,873, compared to a median home value of $264,021 for the U.S. In five years, median value is projected to change by 1.00% annually to $376,148.
B102: Data Note: Income is expressed in current dollars. Housing Affordability Index and Percent of Income for Mortgage calculations are only available for areas with 50 or more owner-occupied housing units. Source: U.S. Census Bureau, Census 2010 Summary File 1. Esri forecasts for 2021 and 2026. Esri converted Census 2000 data into 2010 geography.
F105: August 16, 2021
C107: ©2021 Esri | X107: Page 2 of 2

Sheet Gap Analysis
B1: CCIM Office Gap Analysis
B2: ='Data Input'!B6:C6 -> Plano-Allen Office Submarket
B3: Forecast Period: | C3: ='Data Input'!C15 -> 12 | D3: Months
B5: Current Market Conditions | E5: ='Data Input'!H3 -> 2021-08-16T11:03:13.290
B6: Current Office Employment | E6: ='Data Input'!H19 -> 128349.1608
B7: Office Space per Employee (RSF) | E7: =E8/E6 -> 187.6132251
B8: Current Office Demand (RSF) | E8: ='Data Input'!C9-'Data Input'!C10 -> 24080000
B9: Current Office Supply (RSF) | E9: ='Data Input'!C9 -> 32958000
B10: Current Office Gap (RSF) | E10: =E8-E9 -> -8878000
B11: Current Occupancy Rate | E11: =1-'Data Input'!C10/'Data Input'!C9 -> 0.7306268584
B13: Forecast Market Conditions | E13: ='Data Input'!H3+('Data Input'!C15*30.25) -> 2022-08-14T11:03:13.290
B14: Forecast Office Employment | E14: ='Data Input'!C19 -> 131624.3694
B15: Office Space per Employee (RSF) | E15: =E16/E14 -> 187.6132251
B16: Forecast Office Demand (RSF) | E16: =E14*(E8/E6) -> 24694472.45
B17: Forecast Office Supply (RSF) | E17: ='Data Input'!C9+'Data Input'!C11 -> 33367000
B18: Forecast Office Gap (RSF) | E18: =E16-E17 -> -8672527.553
B19: Forecast Occupancy Rate | E19: =IF(E18<0,1+E18/E17,1) -> 0.7400866859
B21: Forecast Market Stabilization
B22: Targeted Stabilized Occupancy Rate | E22: =1-'Data Input'!C12 -> 0.8
B23: Forecast Annual Absorption (RSF) | E23: =(E16-E8)/('Data Input'!C15/12) -> 614472.4475
B24: Additional Months to Reach Stabilized Occupancy | E24: =IF(E22>E19,(((E22-E19)*E17)/E23)*12,0) -> 39.04085647
B25: Forecast Stabilization Date | E25: =IF(E24>0,E13+(E24*30.25),"Not Applicable") -> 2025-11-07T10:42:55.771
